bitfinex/quotes_BTCUSD_20260315
["timestamp","ask_amount","ask_price","bid_price","bid_amount"]
[1773562351837,0.03814983,71578.0,71566.0,0.0014]
[1773562352037,0.03814983,71578.0,71562.0,0.06986947]
[1773562352038,0.5,71578.0,71562.0,0.06986947]
[1773562352239,0.5,71578.0,71562.0,0.0001853]
[1773562352241,0.0586478,71572.0,71562.0,0.0001853]
[1773562352474,0.0586478,71572.0,71558.0,0.00034]
[1773562352475,0.0586478,71572.0,71563.0,0.0014]
[1773562352476,0.03814983,71571.0,71563.0,0.0014]
[1773562352882,0.03814983,71571.0,71557.0,0.069874]
[1773562353105,0.03814983,71571.0,71558.0,0.0014]
[1773562353106,0.03085887,71569.0,71558.0,0.0014]
[1773562353473,0.06986167,71570.0,71557.0,0.069874]
[1773562353671,0.06986167,71570.0,71559.0,0.0014]
[1773562354274,0.5,71569.0,71559.0,0.0014]
[1773562355275,0.06986362,71568.0,71559.0,0.0014]
[1773562357095,0.06986362,71568.0,71559.0,0.07127212]
[1773562357702,0.05686362,71568.0,71559.0,0.07127212]
[1773562358105,0.55686362,71568.0,71559.0,0.07127212]
[1773562358307,0.55686362,71568.0,71560.0,0.13794056]
[1773562358511,0.55686362,71568.0,71559.0,0.07127212]
[1773562358711,0.55686362,71568.0,71560.0,0.13794056]
[1773562359025,0.55686362,71568.0,71561.0,0.13794056]
[1773562359026,0.44313638,71568.0,71561.0,0.13794056]
[1773562359248,0.44313638,71568.0,71559.0,0.07127212]
[1773562359249,0.44313638,71568.0,71562.0,0.13794056]
[1773562359459,0.44313638,71568.0,71563.0,0.13794056]
[1773562359605,0.44313638,71568.0,71559.0,0.07127212]
[1773562359606,0.5,71569.0,71564.0,0.13794056]
[1773562359607,0.19670632,71569.0,71564.0,0.13794056]
[1773562359815,0.00022001,71568.0,71565.0,0.13794056]
[1773562360013,0.00022001,71568.0,71566.0,0.13794056]
[1773562360210,0.00022001,71568.0,71567.0,0.13934056]
[1773562361196,0.00022001,71568.0,71567.0,0.07632973]
[1773562361398,0.03836984,71568.0,71567.0,0.0014]
[1773562363394,0.00022001,71568.0,71567.0,0.0014]
[1773562363549,0.43170597,71568.0,71567.0,0.0014]
[1773562365440,0.42270597,71568.0,71567.0,0.0014]
[1773562365951,0.07347032,71568.0,71567.0,0.0014]
[1773562366152,0.19670632,71569.0,71567.0,0.0014]
[1773562366153,0.08126771,71569.0,71567.0,0.0712646]
[1773562366368,0.03535611,71569.0,71567.0,0.0712646]
[1773562367168,1e-08,71569.0,71567.0,0.0712646]
[1773562367427,1e-08,71569.0,71564.0,0.06986672]
[1773562367633,1e-08,71569.0,71565.0,0.0014]
[1773562368049,1e-08,71569.0,71566.0,0.0014]
[1773562369314,0.00010714,71572.0,71566.0,0.0014]
[1773562370336,0.00010714,71572.0,71566.0,0.23664441]
[1773562371442,0.00010714,71572.0,71567.0,0.16537901]
[1773562373120,0.10517292,71574.0,71568.0,0.16537901]
[1773562373332,0.06985836,71574.0,71569.0,0.13891909]
[1773562373599,0.06985836,71574.0,71570.0,0.13891909]
[1773562373787,0.06985836,71574.0,71571.0,0.13891909]
[1773562373932,0.06985836,71574.0,71572.0,0.14031909]
[1773562374136,0.06985836,71574.0,71573.0,0.13891909]
[1773562374760,0.06985836,71574.0,71573.0,0.0014]
[1773562374973,0.00022001,71576.0,71573.0,0.0014]
[1773562375221,0.06985209,71580.0,71573.0,0.0014]
[1773562375494,0.06985209,71580.0,71576.0,0.16684443]
[1773562375677,0.06985209,71580.0,71577.0,0.0014]
[1773562375876,0.06985209,71580.0,71577.0,0.16824443]
[1773562376057,0.05416977,71585.0,71577.0,0.0014]
[1773562376395,0.06983266,71582.0,71577.0,0.0014]
[1773562377090,0.06985093,71581.0,71577.0,0.0014]
[1773562377505,0.06983266,71582.0,71577.0,0.0014]
[1773562378053,0.06983266,71582.0,71577.0,0.07125476]
[1773562378256,0.07005267,71582.0,71577.0,0.16824443]
[1773562379275,0.07005267,71582.0,71578.0,0.16684443]
[1773562380354,0.07005267,71582.0,71580.0,0.16684443]
[1773562380806,0.05405267,71582.0,71580.0,0.16684443]
[1773562381007,0.06984913,71583.0,71577.0,0.0014]
[1773562381742,0.06984743,71585.0,71577.0,0.07125468]
[1773562382102,0.07006662,71586.0,71577.0,0.07125468]
[1773562382293,0.07006662,71586.0,71578.0,0.0014]
[1773562385638,0.07006662,71586.0,71572.0,0.06985878]
[1773562385857,0.05416977,71585.0,71573.0,0.0014]
[1773562386051,0.05416977,71587.0,71573.0,0.0014]
[1773562386703,0.05416977,71587.0,71574.0,0.13932617]
[1773562386907,0.06984661,71586.0,71577.0,0.0002]
[1773562387107,0.12423639,71586.0,71578.0,0.13932617]
[1773562387289,0.12423639,71586.0,71579.0,0.14072617]
[1773562387623,0.05438978,71586.0,71580.0,0.13932617]
[1773562387925,0.12423641,71586.0,71581.0,0.13932617]
[1773562388078,0.12423641,71586.0,71582.0,0.13932617]
[1773562388274,0.12423641,71586.0,71579.0,0.0014]
[1773562388501,0.10823641,71586.0,71579.0,0.0014]
[1773562388701,0.07006664,71586.0,71579.0,0.0014]
[1773562388902,0.07006664,71586.0,71579.0,0.00285]
[1773562389099,0.07006664,71586.0,71580.0,0.0014]
[1773562390015,0.07006664,71586.0,71581.0,0.0014]
[1773562390242,0.07006664,71586.0,71582.0,0.00082387]
[1773562390398,0.07006664,71586.0,71582.0,0.0014]
[1773562390742,0.12423641,71586.0,71582.0,0.0014]
[1773562391575,0.00022001,71586.0,71582.0,0.0014]
[1773562392199,0.07006609,71586.0,71582.0,0.0014]
[1773562392804,0.12401225,71590.0,71582.0,0.0014]
[1773562392805,0.05383489,71590.0,71582.0,0.0014]
[1773562394052,0.0698402,71593.0,71582.0,0.0014]
[1773562394192,0.00034,71595.0,71582.0,0.0014]
[1773562394398,0.1844,71619.0,71590.0,1.80711244]
[1773562394595,0.1844,71619.0,71585.0,0.05852822]
[1773562394596,0.0003081,71622.0,71609.0,0.05852822]
[1773562394597,0.0001392,71622.0,71609.0,0.05852822]
[1773562394798,0.0001392,71622.0,71583.0,0.07124898]
[1773562394799,0.0001392,71622.0,71611.0,0.0511096]
[1773562395150,5e-05,71628.0,71612.0,0.0525096]
[1773562395531,0.00015716,71628.0,71612.0,0.0525096]
[1773562395733,0.06980607,71627.0,71612.0,0.0525096]
[1773562396033,0.06980607,71627.0,71582.0,0.06984898]
[1773562396034,0.06980802,71625.0,71599.0,0.06983337]
[1773562396236,0.03816977,71624.0,71600.0,0.0525096]
[1773562396455,0.05416977,71622.0,71600.0,0.0525096]
[1773562397005,0.0014,71623.0,71600.0,0.0525096]
[1773562397609,0.0014,71623.0,71600.0,0.0535096]
[1773562398056,0.05556977,71623.0,71601.0,0.06983142]
[1773562398301,0.05556977,71623.0,71602.0,0.0511096]
[1773562398878,0.06981095,71622.0,71602.0,0.0511096]
[1773562399098,0.06981095,71622.0,71600.0,0.07183221]
[1773562399099,0.05416977,71621.0,71600.0,0.07183221]
[1773562399290,0.05416977,71621.0,71598.0,0.06983378]
[1773562399430,0.05416977,71621.0,71598.0,0.07123378]
[1773562399634,0.05416977,71621.0,71593.0,0.06983885]
[1773562399635,0.05416977,71619.0,71594.0,0.06983825]
[1773562399858,0.05416977,71619.0,71602.0,0.001]
[1773562400052,0.05416977,71619.0,71594.0,0.06983825]
[1773562400053,0.06981485,71618.0,71596.0,0.06983564]
[1773562400259,0.05416977,71617.0,71596.0,0.06983564]
[1773562400658,0.05416977,71615.0,71596.0,0.06983564]
[1773562401915,0.05416977,71615.0,71596.0,0.07123564]
[1773562402228,0.06981875,71614.0,71596.0,0.06983564]
[1773562402427,0.06028272,71613.0,71594.0,0.06983794]
[1773562402998,0.06028272,71613.0,71596.0,0.0002]
[1773562403966,0.1754001,71610.0,71588.0,0.0002]
[1773562404144,0.06028272,71608.0,71588.0,0.0002]
[1773562404304,0.06028272,71606.0,71588.0,0.0002]
[1773562404928,0.06028272,71606.0,71583.0,0.06984809]
[1773562405462,0.06038982,71606.0,71583.0,0.06984809]
[1773562405664,0.06038982,71606.0,71581.0,0.0002]
[1773562405874,0.06038982,71606.0,71581.0,0.07005035]
[1773562406296,0.06982752,71605.0,71581.0,0.07005035]
[1773562406507,0.06028272,71604.0,71581.0,0.07005035]
[1773562406674,0.06028272,71604.0,71581.0,0.0002]
[1773562406862,0.06028272,71599.0,71581.0,0.0002]
[1773562407183,0.06028272,71597.0,71579.0,0.0003081]
[1773562407542,0.06028272,71597.0,71577.0,0.0002]
[1773562408466,0.0698363,71596.0,71577.0,0.0002]
[1773562408664,0.06028272,71595.0,71577.0,0.0002]
[1773562411020,0.06028272,71593.0,71577.0,0.0002]
[1773562411223,0.06983825,71594.0,71577.0,0.0002]
[1773562411224,0.06168272,71592.0,71577.0,0.0002]
[1773562414191,0.1301239,71591.0,71577.0,0.0002]
[1773562414536,0.06028272,71590.0,71577.0,0.0002]
[1773562416729,0.06984313,71589.0,71577.0,0.0002]
[1773562419065,0.0014,71588.0,71577.0,0.0002]
[1773562423060,0.06984508,71587.0,71577.0,0.0002]
[1773562424318,0.04584508,71587.0,71577.0,0.0002]
[1773562425438,0.04584508,71587.0,71574.0,0.0542277]
[1773562426264,0.04584508,71587.0,71571.0,0.0014]
[1773562426463,0.04584508,71587.0,71569.0,0.0002]
[1773562426464,0.05854471,71584.0,71569.0,0.0002]
[1773562426600,0.05854471,71580.0,71569.0,0.0002]
[1773562427612,0.06985288,71579.0,71569.0,0.00055766]
[1773562428827,0.06985288,71579.0,71569.0,0.05976167]
[1773562429566,0.06985288,71579.0,71562.0,0.0002]
[1773562429766,0.05855542,71572.0,71562.0,0.0002]
[1773562430764,0.0014,71571.0,71562.0,0.0002]
[1773562432002,0.07126069,71571.0,71562.0,0.0002]
[1773562438325,0.07126069,71571.0,71558.0,0.00012602]
[1773562438691,0.07126069,71571.0,71557.0,0.0014]
[1773562439713,0.04726069,71571.0,71557.0,0.0014]
[1773562441205,0.04726069,71571.0,71558.0,0.0002]
[1773562447529,0.02626069,71571.0,71558.0,0.0002]
[1773562448114,0.1466,71570.0,71558.0,0.0002]
[1773562451018,0.02626069,71571.0,71558.0,0.0002]
[1773562451309,0.02626069,71571.0,71556.0,0.12072349]
[1773562452173,0.05299064,71570.0,71556.0,0.06691749]
[1773562453219,0.06986265,71569.0,71556.0,0.06691749]
[1773562455104,0.06986265,71570.0,71556.0,0.06691749]
[1773562455305,0.06986265,71570.0,71555.0,0.01124]
[1773562455527,0.06986265,71570.0,71555.0,0.08111616]
[1773562455741,0.06986265,71570.0,71555.0,0.01124]
[1773562456920,0.06986265,71570.0,71556.0,0.0002]
[1773562462865,0.04786265,71570.0,71556.0,0.0002]
[1773562463364,0.07947134,71571.0,71552.0,0.0002]
[1773562463365,0.06986655,71565.0,71552.0,0.0002]
[1773562463732,0.05855542,71562.0,71549.0,0.0001675]
[1773562464281,0.05855542,71562.0,71544.0,0.05185848]
[1773562464282,0.05855542,71562.0,71544.0,0.04774566]
[1773562464577,0.0014,71564.0,71543.0,0.0002]
[1773562464578,0.05855542,71554.0,71543.0,0.0002]
[1773562464783,0.0014,71553.0,71543.0,0.0002]
[1773562465461,0.06987924,71552.0,71543.0,0.0002]
[1773562465608,0.06987924,71552.0,71536.0,0.06989476]
[1773562465609,0.05855542,71551.0,71537.0,0.06989346]
[1773562465807,0.05855542,71551.0,71543.0,0.00010714]
[1773562466448,0.11040289,71551.0,71543.0,0.00030714]
[1773562466982,0.11040289,71551.0,71532.0,0.05356938]
[1773562466983,0.06144047,71549.0,71532.0,0.0003109]
[1773562467173,0.05855542,71542.0,71532.0,0.0003109]
[1773562467372,0.0014,71541.0,71532.0,0.0003109]
[1773562467739,0.06989097,71540.0,71532.0,0.0003109]
[1773562468147,0.06989097,71540.0,71523.0,0.06990668]
[1773562468148,0.06989097,71540.0,71524.0,0.0699059]
[1773562468581,0.05184747,71539.0,71522.0,0.01157674]
[1773562468777,0.05855542,71532.0,71522.0,0.01168393]
[1773562468938,0.05855542,71532.0,71522.0,0.08159223]
[1773562468939,0.05995542,71532.0,71522.0,0.08159223]
[1773562469143,0.0014,71532.0,71522.0,0.08159223]
[1773562469538,0.0002927,71584.0,71522.0,0.08188493]
[1773562469648,0.24506001,71595.0,71522.0,0.08188493]
[1773562469650,0.05198256,71621.0,71565.0,0.20872233]
[1773562469867,0.05198256,71621.0,71550.0,0.0384]
[1773562469868,0.05198256,71621.0,71615.0,0.44978118]
[1773562470067,0.05198256,71621.0,71602.0,0.00729359]
[1773562470068,0.00034,71632.0,71602.0,0.00729359]
[1773562470069,0.00034,71632.0,71616.0,0.0014]
[1773562470071,0.06980706,71626.0,71616.0,0.0014]
[1773562470272,0.06980706,71626.0,71617.0,0.14031076]
[1773562470489,0.3434108,71625.0,71618.0,0.14031076]
[1773562470664,0.48356633,71625.0,71619.0,0.14031076]
[1773562470883,0.48392377,71625.0,71620.0,0.14031076]
[1773562471101,0.48392377,71625.0,71621.0,0.14031076]
[1773562471303,0.48392377,71625.0,71622.0,0.14031076]
[1773562471507,0.48392377,71625.0,71622.0,0.0014]
[1773562472211,0.55373236,71625.0,71622.0,0.0014]
[1773562472749,0.55373236,71625.0,71602.0,0.00729359]
[1773562472750,0.07016603,71625.0,71602.0,0.00729359]
[1773562472980,0.07016603,71625.0,71605.0,0.13965765]
[1773562472981,0.05198256,71623.0,71605.0,0.13965765]
[1773562473260,0.05198256,71623.0,71606.0,0.13965765]
[1773562473406,0.05198256,71623.0,71602.0,0.00729359]
[1773562473810,0.05198256,71623.0,71603.0,0.0014]
[1773562474873,0.06981095,71622.0,71603.0,0.0014]
[1773562475046,0.05198256,71621.0,71603.0,0.0014]
[1773562476073,0.05198256,71619.0,71589.0,0.11120732]
[1773562476231,0.05198256,71619.0,71590.0,0.0014]
[1773562476433,0.05198256,71619.0,71591.0,0.03061359]
[1773562477075,0.05198256,71616.0,71591.0,0.03061359]
[1773562478246,0.05338256,71616.0,71591.0,0.03061359]
[1773562479630,0.5533841,71615.0,71591.0,0.03061359]
[1773562479839,0.5533841,71615.0,71592.0,0.03551999]
[1773562481139,0.60536666,71615.0,71592.0,0.03551999]
[1773562481646,0.05198256,71614.0,71592.0,0.03551999]
[1773562482156,0.05198256,71614.0,71593.0,0.03580346]
[1773562484143,0.06981972,71613.0,71593.0,0.10564212]
[1773562484284,0.12180228,71613.0,71593.0,0.10564212]
[1773562484990,0.06981972,71613.0,71593.0,0.10564212]
[1773562485211,0.05198256,71612.0,71593.0,0.06983866]
[1773562485624,0.03298256,71612.0,71593.0,0.06983866]
[1773562485995,0.03298256,71612.0,71594.0,0.13788702]
[1773562486217,0.03298256,71612.0,71595.0,0.13788702]
[1773562486431,0.06982167,71611.0,71596.0,0.13788702]
[1773562486635,0.06982167,71611.0,71597.0,0.13788702]
[1773562486838,0.06982167,71611.0,71598.0,0.13788702]
[1773562487036,0.48356633,71610.0,71599.0,0.13928702]
[1773562487239,0.48356633,71610.0,71600.0,0.13788702]
[1773562487441,0.48356633,71610.0,71601.0,0.13788702]
[1773562487647,0.48356633,71610.0,71602.0,0.13332994]
[1773562487871,0.48356633,71610.0,71599.0,0.0014]
[1773562488824,0.06982362,71609.0,71599.0,0.0014]
[1773562489108,0.06982362,71609.0,71584.0,0.0700476]
[1773562489109,0.05184747,71607.0,71584.0,0.0700476]
[1773562489504,0.05184747,71607.0,71585.0,0.0014]
[1773562489799,0.05184747,71607.0,71601.0,0.0002]
[1773562489953,0.05184747,71607.0,71601.0,0.0014]
[1773562490598,0.06692125,71608.0,71593.0,0.0014]
[1773562490599,0.07178637,71605.0,71593.0,0.0014]
[1773562490794,0.0698285,71604.0,71593.0,0.0014]
[1773562491683,0.0698285,71604.0,71593.0,0.00125098]
[1773562493252,0.0408285,71604.0,71593.0,0.00125098]
[1773562493857,0.0408285,71604.0,71593.0,0.00080402]
[1773562494076,0.0408285,71604.0,71593.0,0.00065502]
[1773562494578,0.0408285,71604.0,71594.0,0.0014]
[1773562494856,0.48356633,71603.0,71595.0,0.0014]
[1773562495006,0.48356633,71603.0,71596.0,0.0014]
[1773562495203,0.06983045,71602.0,71596.0,0.0014]
[1773562496012,0.07018789,71602.0,71596.0,0.0014]
[1773562496216,0.07018789,71602.0,71596.0,0.00125098]
[1773562496424,0.07018789,71602.0,71597.0,0.0014]
[1773562496619,0.07018789,71602.0,71598.0,0.0014]
[1773562496818,0.07018789,71602.0,71599.0,0.0014]
[1773562497336,0.06983045,71602.0,71599.0,0.0014]
[1773562497845,0.07083045,71602.0,71599.0,0.0014]
[1773562498376,0.06983045,71602.0,71599.0,0.0014]
[1773562498554,0.07116839,71600.0,71590.0,0.09924783]
[1773562498767,0.07116839,71600.0,71586.0,0.0002]
[1773562498768,0.07116839,71600.0,71591.0,0.0014]
[1773562499263,0.0698324,71600.0,71591.0,0.0014]
[1773562499438,0.14100079,71600.0,71591.0,0.0014]
[1773562499843,0.14100079,71600.0,71592.0,0.1391215]
[1773562500037,0.14100079,71600.0,71591.0,0.0014]
[1773562500684,0.14100079,71600.0,71591.0,0.00125105]
[1773562501002,0.11900079,71600.0,71591.0,0.00125105]
[1773562503984,0.11900079,71600.0,71591.0,0.00145105]
[1773562504410,0.0478324,71600.0,71591.0,0.00145105]
[1773562508667,0.0208324,71600.0,71591.0,0.00145105]
[1773562508855,0.07116839,71601.0,71591.0,0.00145105]
[1773562509012,0.41641512,71600.0,71591.0,0.00145105]
[1773562509213,0.2069273,71600.0,71591.0,0.00145105]
[1773562509965,0.2069273,71600.0,71584.0,0.0002]
[1773562509966,0.13575891,71600.0,71584.0,0.0002]
[1773562510123,0.13575891,71600.0,71581.0,0.0002]
[1773562510124,0.13575891,71600.0,71577.0,0.0016]
[1773562510125,0.07116839,71598.0,71577.0,0.0016]
[1773562510322,0.07116839,71598.0,71578.0,0.0014]
[1773562510670,0.07116839,71596.0,71579.0,0.0014]
[1773562510824,0.07116839,71594.0,71579.0,0.0014]
[1773562511028,0.07116839,71592.0,71577.0,0.0016]
[1773562511468,0.07116839,71592.0,71577.0,0.0002]
[1773562511678,0.07116839,71592.0,71577.0,0.0016]
[1773562512054,0.07116839,71592.0,71578.0,0.13925866]
[1773562512252,0.07116839,71592.0,71579.0,0.13925866]
[1773562512477,0.07116839,71592.0,71580.0,0.13925866]
[1773562512692,0.07116839,71592.0,71581.0,0.13925866]
[1773562512917,0.07116839,71590.0,71582.0,0.13925866]
[1773562513050,0.07116839,71590.0,71577.0,0.0016]
[1773562514165,0.06984118,71591.0,71577.0,0.0014]
[1773562514166,0.07116839,71588.0,71577.0,0.0014]
[1773562514786,0.06984508,71587.0,71577.0,0.0014]
[1773562515011,0.06984508,71587.0,71569.0,0.0698626]
[1773562515229,0.13575891,71586.0,71577.0,0.0014]
[1773562516419,0.12275891,71586.0,71577.0,0.0014]
[1773562516935,0.06984703,71585.0,71569.0,0.1428989]
[1773562517139,0.06984703,71585.0,71577.0,0.0014]
[1773562517347,0.14101542,71585.0,71576.0,0.0014]
[1773562519254,0.14101542,71585.0,71576.0,0.0016]
[1773562520155,0.14101542,71585.0,71576.0,0.0002]
[1773562520357,0.14101542,71585.0,71576.0,0.0016]
[1773562521558,0.07116839,71588.0,71576.0,0.0016]
[1773562521775,0.12275891,71585.0,71576.0,0.0016]
[1773562524175,0.06984801,71584.0,71576.0,0.0016]
[1773562528133,0.06984801,71584.0,71568.0,0.0732363]
[1773562528314,0.06984801,71584.0,71569.0,0.0014]
[1773562528927,0.06984801,71584.0,71569.0,0.07126254]
[1773562530615,0.06984801,71584.0,71570.0,0.0014]
[1773562531732,0.08934613,71583.0,71571.0,0.0014]
[1773562531962,0.07634613,71583.0,71571.0,0.0014]
[1773562532522,0.10475891,71582.0,71568.0,0.0002]
[1773562532762,0.06984801,71587.0,71568.0,0.0002]
[1773562532763,0.08934613,71597.0,71571.0,0.08308723]
[1773562532940,0.00022001,71600.0,71571.0,0.08308723]
[1773562532941,0.06983532,71599.0,71571.0,0.08308723]
[1773562533144,0.00022001,71586.0,71571.0,0.08308723]
[1773562533321,0.06983532,71599.0,71571.0,0.08308723]
[1773562533686,0.00022001,71594.0,71571.0,0.08308723]
[1773562535341,0.06983923,71593.0,71573.0,0.08308723]
[1773562537169,0.00022001,71594.0,71573.0,0.08308723]
[1773562537368,0.07005875,71594.0,71575.0,0.08308723]
[1773562537609,0.07005875,71594.0,71577.0,0.08308723]
[1773562539518,0.05305875,71594.0,71579.0,0.08308723]
[1773562540429,0.06983825,71596.0,71579.0,0.08308723]
[1773562541731,0.06983605,71597.0,71580.0,0.06985191]
[1773562541937,0.00022001,71596.0,71581.0,0.08308723]
[1773562542139,0.00022001,71596.0,71583.0,0.08308723]
[1773562543921,0.00022001,71596.0,71584.0,0.06984801]
[1773562544144,0.06983452,71598.0,71587.0,0.08308723]
[1773562544489,0.00022001,71601.0,71587.0,0.08308723]
[1773562544663,0.00022001,71601.0,71591.0,0.07719273]
[1773562545963,0.00022001,71601.0,71592.0,0.0698402]
[1773562546150,0.00022001,71601.0,71593.0,0.07793674]
[1773562546934,0.00022001,71601.0,71594.0,0.0014]
[1773562547140,0.00022001,71601.0,71594.0,0.07123801]
[1773562547335,0.05226683,71606.0,71595.0,0.07834408]
[1773562547583,0.05237395,71606.0,71595.0,0.07819509]
[1773562548149,0.06993411,71606.0,71595.0,0.07819509]
[1773562548354,0.00010712,71606.0,71595.0,0.07819509]
[1773562548572,0.069934,71606.0,71595.0,0.07819509]
[1773562549592,0.0700427,71610.0,71597.0,0.0791465]
[1773562549793,0.00022001,71610.0,71597.0,0.07925362]
[1773562549993,0.07004287,71610.0,71597.0,0.07925362]
[1773562550980,0.00022001,71610.0,71597.0,0.07925362]
[1773562552096,0.00022001,71610.0,71598.0,0.06983435]
[1773562552495,0.07004229,71611.0,71599.0,0.08139601]
[1773562552496,0.00022001,71611.0,71599.0,0.08139601]
[1773562553338,0.00022001,71611.0,71598.0,0.12831908]
[1773562553339,0.00022001,71608.0,71601.0,0.08175374]
[1773562554315,0.00022001,71608.0,71602.0,0.06983045]
[1773562554981,0.0668875,71617.0,71602.0,0.06983045]
[1773562555182,0.1591356,71620.0,71602.0,0.06983045]
[1773562555382,0.06981446,71619.0,71602.0,0.06983045]
[1773562556208,0.00022001,71618.0,71602.0,0.06983045]
[1773562556413,0.00022001,71618.0,71603.0,0.08279671]
[1773562559185,0.08932212,71627.0,71608.0,0.05848473]
[1773562559354,0.08932212,71627.0,71609.0,0.0014]
[1773562561205,0.08932212,71627.0,71610.0,0.06982265]
[1773562561415,0.08932212,71627.0,71610.0,0.15144062]
[1773562561640,0.08954213,71627.0,71610.0,0.15144062]
[1773562562561,0.08954213,71627.0,71610.0,0.15244062]
[1773562562758,0.07454213,71627.0,71610.0,0.15244062]
[1773562563685,0.00022001,71627.0,71611.0,0.0961261]
[1773562566488,0.00022001,71627.0,71612.0,0.1673468]
[1773562567881,0.00022001,71627.0,71612.0,0.0712207]
[1773562568107,0.00022001,71627.0,71612.0,0.1673468]
[1773562569957,0.00022001,71627.0,71612.0,0.0712207]
[1773562569958,0.08932212,71626.0,71612.0,0.0712207]
[1773562570366,0.07132212,71626.0,71612.0,0.0712207]
[1773562570719,0.0700261,71627.0,71612.0,0.0712207]
[1773562572720,0.00022001,71627.0,71612.0,0.0712207]
[1773562573871,0.00022001,71627.0,71613.0,0.0961261]
[1773562574295,0.00022001,71627.0,71612.0,0.0712207]
[1773562574868,0.07002654,71627.0,71612.0,0.0712207]
[1773562575283,0.07002654,71627.0,71612.0,0.0698207]
[1773562575502,0.07002654,71627.0,71613.0,0.0014]
[1773562576401,0.00022001,71627.0,71614.0,0.06981875]
[1773562576567,0.00022001,71627.0,71615.0,0.0014]
[1773562576568,0.08932212,71626.0,71615.0,0.0014]
[1773562577675,0.08932212,71625.0,71611.0,0.06982144]
[1773562577883,0.08932212,71625.0,71612.0,0.0014]
[1773562578081,0.08932212,71625.0,71611.0,0.06982144]
[1773562578287,0.0698082,71625.0,71613.0,0.06981972]
[1773562578502,0.08932212,71624.0,71614.0,0.0014]
[1773562579081,0.08932212,71624.0,71615.0,0.0014]
[1773562579282,0.06432212,71624.0,71615.0,0.0014]
[1773562580035,0.06432212,71624.0,71613.0,0.06981972]
[1773562580036,0.06979712,71637.0,71614.0,0.0961261]
[1773562580172,0.06979712,71637.0,71617.0,0.0961261]
[1773562580173,0.06979756,71636.0,71617.0,0.0961261]
[1773562580374,0.06979756,71636.0,71618.0,0.06981485]
[1773562580594,0.15911968,71636.0,71618.0,0.06981485]
[1773562581200,0.07001836,71635.0,71618.0,0.06981485]
[1773562581480,0.07001836,71635.0,71618.0,0.06958379]
[1773562582151,0.00022001,71627.0,71618.0,0.06958379]
[1773562584724,0.00022001,71635.0,71620.0,0.09483424]
[1773562584893,0.00022001,71635.0,71620.0,0.09468527]
[1773562585332,0.00022001,71635.0,71621.0,0.06981192]
[1773562585907,0.00044708,71632.0,71621.0,0.06981192]
[1773562586111,0.00044708,71632.0,71622.0,0.00125104]
[1773562586940,0.08564101,71634.0,71622.0,0.00125104]
[1773562587145,0.04254052,71638.0,71622.0,0.00135812]
[1773562587470,0.0001675,71667.0,71657.0,0.14279552]
[1773562587472,0.09584273,71663.0,71657.0,0.14279552]
[1773562587668,0.0001675,71667.0,71646.0,0.0014]
[1773562587669,0.09584273,71666.0,71646.0,0.0014]
[1773562588566,0.0014,71665.0,71646.0,0.0014]
[1773562588748,0.09584273,71664.0,71646.0,0.0014]
[1773562589128,0.00012,71663.0,71639.0,0.07119243]
[1773562589328,0.09584273,71662.0,71639.0,0.07119243]
[1773562589534,0.09584273,71662.0,71641.0,0.09483424]
[1773562589736,0.09584273,71662.0,71640.0,0.05848473]
[1773562589737,0.00012,71663.0,71640.0,0.06979341]
[1773562589738,0.05848473,71660.0,71640.0,0.06979341]
[1773562589937,0.00022001,71647.0,71640.0,0.06979341]
[1773562590859,0.00022001,71647.0,71641.0,0.001]
[1773562591059,0.00022001,71647.0,71640.0,0.06979341]
[1773562591267,0.00022001,71647.0,71629.0,0.06980367]
[1773562591268,0.09584273,71645.0,71629.0,0.06980367]
[1773562591482,0.09584273,71645.0,71631.0,0.06980218]
[1773562591881,0.09584273,71645.0,71628.0,0.06980453]
[1773562592060,0.0014,71644.0,71630.0,0.05848473]
[1773562592259,0.00012,71643.0,71630.0,0.05848473]
[1773562592463,0.09596273,71643.0,71630.0,0.05848473]
[1773562593701,0.09596273,71643.0,71631.0,0.06980218]
[1773562595880,0.00012,71643.0,71631.0,0.06980218]
[1773562596081,0.0014,71642.0,71634.0,0.09483424]
[1773562596510,0.00022001,71647.0,71634.0,0.09483424]
[1773562596711,0.0014,71641.0,71634.0,0.09483424]
[1773562596906,0.0014,71641.0,71632.0,0.05848473]
[1773562597305,0.0014,71641.0,71634.0,0.001]
[1773562597710,0.0014,71641.0,71632.0,0.05848473]
[1773562598246,0.0014,71640.0,71633.0,0.06980023]
[1773562598450,0.0014,71639.0,71633.0,0.06980023]
[1773562599235,0.0014,71640.0,71633.0,0.06980023]
[1773562599913,0.00022001,71647.0,71633.0,0.06980023]
[1773562600059,0.0014,71646.0,71633.0,0.06980023]
[1773562600760,0.0014,71646.0,71633.0,0.07080023]
[1773562601117,0.0014,71646.0,71633.0,0.06980023]
[1773562601687,0.00022001,71647.0,71636.0,0.05848473]
[1773562601904,0.0014,71646.0,71636.0,0.05848473]
[1773562602236,0.0014,71646.0,71634.0,0.09483424]
[1773562603006,0.0014,71646.0,71635.0,0.06979828]
[1773562604122,0.00022001,71647.0,71635.0,0.16463252]
[1773562604424,0.0014,71645.0,71635.0,0.16563252]
[1773562605390,0.00022001,71647.0,71635.0,0.16563252]
[1773562605587,0.0014,71646.0,71635.0,0.16563252]
[1773562605814,0.00022001,71645.0,71635.0,0.16463252]
[1773562606010,0.00022001,71647.0,71635.0,0.16463252]
[1773562606011,0.0014,71644.0,71636.0,0.24934804]
[1773562606254,0.00022001,71651.0,71635.0,0.16563252]
[1773562606255,0.00022001,71651.0,71638.0,0.09483424]
[1773562606424,0.0014,71648.0,71639.0,0.23324532]
[1773562606646,0.00022001,71651.0,71645.0,0.5]
[1773562606814,0.0014,71649.0,71646.0,0.13841108]
[1773562607015,0.0014,71649.0,71645.0,0.5]
[1773562607016,0.09584273,71648.0,71645.0,0.17224908]
[1773562607217,0.0014,71649.0,71640.0,0.06979318]
[1773562607542,0.0014,71648.0,71640.0,0.06979318]
[1773562608442,0.0014,71648.0,71633.0,0.09483424]
[1773562609640,0.0014,71647.0,71633.0,0.09583424]
[1773562609823,0.0014,71647.0,71633.0,0.09483424]
[1773562610024,0.0014,71647.0,71633.0,0.09583424]
[1773562610394,0.0014,71647.0,71634.0,0.06979925]
[1773562611790,0.0014,71647.0,71632.0,0.09552196]
[1773562611791,0.07118747,71647.0,71632.0,0.09552196]
[1773562612006,0.05400164,71641.0,71623.0,0.06980997]
[1773562612185,0.05400164,71641.0,71633.0,0.001]
[1773562612367,0.05400164,71641.0,71623.0,0.06991705]
[1773562612766,0.05400164,71641.0,71634.0,0.001]
[1773562612967,0.05843545,71642.0,71623.0,0.06991705]
[1773562612968,0.05480671,71639.0,71623.0,0.06991705]
[1773562615084,0.05480671,71639.0,71623.0,0.13992077]
[1773562615789,0.05480671,71639.0,71623.0,0.14012077]